bitfinex/quotes_ETHUSD_20251213
["timestamp","ask_amount","ask_price","bid_price","bid_amount"]
[1765599456677,3.74470393,3091.5,3091.4,0.175]
[1765599458504,3.23470393,3091.5,3091.4,0.175]
[1765599458666,3.74470393,3091.5,3091.4,0.175]
[1765599461099,6.46872372,3091.8,3091.4,0.175]
[1765599461397,0.51,3091.7,3091.4,0.175]
[1765599465224,6.46914218,3091.6,3091.4,0.175]
[1765599467224,3.23457109,3091.6,3091.5,0.175]
[1765599468033,6.46914218,3091.6,3091.1,0.0598]
[1765599468207,6.93714218,3091.6,3091.1,0.2348]
[1765599470732,3.23457109,3091.6,3091.5,0.175]
[1765599471331,6.46872372,3091.8,3091.5,0.175]
[1765599471527,0.51,3091.7,3091.5,0.175]
[1765599471922,3.23436186,3091.8,3091.6,0.175]
[1765599472148,3.74436186,3091.8,3091.7,0.175]
[1765599472530,7.47762372,3091.8,3091.3,0.175]
[1765599473038,7.96832372,3091.8,3091.3,0.175]
[1765599475157,3.74436186,3091.8,3091.7,0.175]
[1765599479949,4.24326186,3091.8,3091.2,3.81542797]
[1765599480275,4.24326186,3091.8,3091.3,0.8452116]
[1765599480646,4.24326186,3091.8,3091.4,0.175]
[1765599481360,4.73396186,3091.8,3091.4,0.175]
[1765599484079,4.22396186,3091.8,3091.4,0.175]
[1765599484374,4.73396186,3091.8,3091.4,0.175]
[1765599485080,4.24326186,3091.8,3091.4,0.175]
[1765599485279,4.24326186,3091.8,3091.4,0.64106396]
[1765599485978,3.74436186,3091.8,3091.7,0.175]
[1765599486182,3.74436186,3091.8,3091.2,0.175]
[1765599486183,0.4907,3091.7,3091.2,0.175]
[1765599486366,3.74436186,3091.8,3091.2,0.175]
[1765599488287,3.23436186,3091.8,3091.7,0.175]
[1765599488489,4.20569655,3091.9,3091.7,0.175]
[1765599488694,0.001,3092.0,3091.8,0.175]
[1765599488989,3.23515265,3092.0,3091.9,0.47514147]
[1765599489158,3.23515265,3092.0,3091.9,0.175]
[1765599490763,0.001,3092.0,3091.9,0.175]
[1765599491472,0.001,3092.0,2889.2,0.172633]
[1765599491473,0.4999,3092.0,3091.3,0.58047529]
[1765599491790,0.1948,3091.9,3091.4,0.75547529]
[1765599492288,0.4907,3091.8,3091.4,1.21256331]
[1765599492693,0.4907,3091.8,3091.4,0.45708802]
[1765599492995,3.72512661,3091.8,3091.4,0.45708802]
[1765599495116,3.74442661,3091.8,3091.4,0.45708802]
[1765599495416,0.4907,3091.7,3091.4,0.45708802]
[1765599495918,0.4989,3091.5,3090.9,4.32574]
[1765599496085,0.4989,3091.4,3091.1,0.97141922]
[1765599497408,0.4989,3091.4,3091.1,1.55189451]
[1765599498418,0.4907,3091.5,3091.2,0.58047529]
[1765599498605,3.23450268,3091.7,3091.2,0.58047529]
[1765599498606,3.23450268,3091.7,3091.4,0.175]
[1765599499596,4.23510757,3091.8,3091.4,0.175]
[1765599499803,4.23510757,3091.8,3091.0,3.23519214]
[1765599499804,0.4657,3091.5,3090.7,0.175]
[1765599500121,0.4657,3091.4,3090.7,0.175]
[1765599500418,0.4657,3091.4,3090.8,0.17289606]
[1765599500819,3.70054275,3091.4,3090.9,0.58047529]
[1765599501020,3.70054275,3091.4,3090.8,0.34789606]
[1765599501223,4.15534275,3091.4,3090.8,0.75337135]
[1765599501391,6.9353855,3091.4,3090.8,0.17289606]
[1765599501588,0.4548,3091.3,3090.8,0.17289606]
[1765599502223,0.4548,3091.3,3090.6,0.002]
[1765599502428,0.4941,3090.9,3090.6,0.002]
[1765599502926,3.23517794,3091.1,3090.6,0.58247529]
[1765599503120,3.76381517,3091.1,3090.6,0.58247529]
[1765599503310,4.26191517,3091.1,3090.6,0.75747529]
[1765599504115,4.26191517,3091.1,3090.6,1.20985877]
[1765599504116,3.76381517,3091.1,3090.6,1.20985877]
[1765599504315,3.76381517,3091.1,3090.6,4.4454733]
[1765599504529,3.76381517,3091.1,3090.6,4.2704733]
[1765599504832,3.76381517,3091.1,3090.6,4.4454733]
[1765599505540,3.73327794,3091.1,3090.6,1.20985877]
[1765599505844,0.97167408,3091.0,3090.6,1.20985877]
[1765599508130,0.97167408,3091.0,3090.6,0.002]
[1765599508131,0.4941,3090.7,3090.6,0.002]
[1765599508730,1.52083723,3090.7,3090.6,0.002]
[1765599509116,4.34725189,3090.7,3090.6,0.002]
[1765599511268,7.58276488,3090.7,3090.6,0.002]
[1765599512464,8.66458197,3090.7,3090.6,0.002]
[1765599513953,5.83816731,3090.7,3090.6,0.002]
[1765599520178,8.66784849,3090.7,3090.6,0.002]
[1765599521055,15.03584849,3090.7,3090.6,0.002]
[1765599522396,12.20616731,3090.7,3090.6,0.002]
[1765599534513,11.70806731,3090.7,3090.6,0.002]
[1765599536505,11.70806731,3090.7,3090.6,0.177]
[1765599536701,10.13215022,3090.7,3090.6,0.177]
[1765599537007,10.13215022,3090.7,3090.6,0.002]
[1765599537211,10.59495022,3090.7,3090.6,0.002]
[1765599537408,11.07085022,3090.7,3090.6,0.002]
[1765599545985,10.13215022,3090.7,3090.6,0.177]
[1765599546190,10.64215022,3090.7,3090.6,0.352]
[1765599546390,10.64215022,3090.7,3090.6,0.177]
[1765599547810,10.11351299,3090.7,3090.6,0.177]
[1765599554434,11.05221299,3090.7,3090.6,0.002]
[1765599561150,10.11351299,3090.7,3090.6,0.177]
[1765599579880,10.58331299,3090.7,3090.6,0.002]
[1765599580275,11.05741299,3090.7,3090.6,0.002]
[1765599585998,10.11351299,3090.7,3090.6,0.177]
[1765599586566,10.11351299,3090.7,3090.6,0.352]
[1765599587097,3.74551299,3090.7,3090.6,0.352]
[1765599593210,3.74551299,3090.7,3090.6,0.177]
[1765599594211,3.23551299,3090.7,3090.6,0.177]
[1765599596119,6.47060726,3090.9,3090.6,0.177]
[1765599596322,6.47060726,3090.9,3090.7,0.175]
[1765599596491,3.23530363,3090.9,3090.8,0.175]
[1765599601530,3.23530363,3090.9,3090.6,0.002]
[1765599601727,3.31286559,3090.7,3090.6,0.002]
[1765599602209,3.81136559,3090.7,3090.6,0.002]
[1765599602618,4.34000282,3090.7,3090.6,0.002]
[1765599603940,7.57551581,3090.7,3090.6,0.002]
[1765599613235,13.94351581,3090.7,3090.6,0.002]
[1765599613417,15.7647809,3090.7,3090.6,0.002]
[1765599617018,15.76531139,3090.7,3090.6,0.002]
[1765599622568,13.9440463,3090.7,3090.6,0.002]
[1765599622744,10.13215022,3090.7,3090.6,0.177]
[1765599623160,12.9618463,3090.7,3090.6,0.177]
[1765599626359,12.9618463,3090.7,3090.6,0.352]
[1765599626360,10.13215022,3090.7,3090.6,0.352]
[1765599626584,9.60351299,3090.7,3090.6,0.352]
[1765599628805,9.60351299,3090.7,3090.6,0.177]
[1765599637178,9.60351299,3090.7,3090.6,0.352]
[1765599637902,9.60351299,3090.7,3090.6,0.177]
[1765599638499,9.60351299,3090.7,3090.6,0.002]
[1765599640702,10.10091299,3090.7,3090.6,0.002]
[1765599640913,10.56781299,3090.7,3090.6,0.002]
[1765599641441,6.06328056,3091.5,3090.6,0.002]
[1765599641442,3.23454233,3091.7,3090.7,9.930566]
[1765599641736,3.23425725,3091.9,3091.6,0.2348]
[1765599641931,0.001,3092.0,3091.9,0.175]
[1765599642431,0.001,3092.0,3091.9,0.35]
[1765599642928,0.001,3092.0,3091.9,1.32124939]
[1765599643236,0.001,3092.0,3091.9,1.78626396]
[1765599644604,0.001,3092.0,3091.9,1.32124939]
[1765599651034,0.001,3092.0,3091.9,4.55550664]
[1765599662516,0.001,3092.0,3091.9,1.32124939]
[1765599664347,0.001,3092.0,3091.9,4.55550664]
[1765599668023,0.001,3092.0,3091.9,3.58425725]
[1765599670053,0.001,3092.0,3091.9,0.35]
[1765599673845,0.001,3092.0,3091.9,0.175]
[1765599674049,3.81283166,3092.0,3090.6,3.23759165]
[1765599674227,0.4889,3091.8,3090.7,0.37662289]
[1765599674433,0.51,3091.7,3090.6,0.002]
[1765599674623,1.0082,3091.7,3090.7,0.175]
[1765599675052,0.4982,3091.6,3090.7,0.175]
[1765599675423,6.46935144,3091.5,3090.7,0.75547529]
[1765599675754,6.46935144,3091.5,3090.8,0.39930582]
[1765599676151,0.4982,3091.4,3090.8,0.39930582]
[1765599676656,0.4982,3091.4,3090.8,0.57430582]
[1765599677362,3.23467572,3091.5,3090.9,0.175]
[1765599679444,3.23467572,3091.5,3090.9,3.41029977]
[1765599679642,3.23467572,3091.5,3091.0,0.55596056]
[1765599680473,3.23467572,3091.5,3091.0,0.38096056]
[1765599680765,3.23467572,3091.5,3091.0,0.55596056]
[1765599683275,3.23461104,3091.6,3091.1,0.2348]
[1765599683674,3.68951104,3091.6,3091.1,0.2348]
[1765599684674,3.23461104,3091.6,3091.2,0.175]
[1765599684885,0.4549,3091.5,3091.1,0.42118582]
[1765599686374,3.23478035,3091.4,3091.1,0.0598]
[1765599686672,3.23478035,3091.4,3090.8,3.74537547]
[1765599686673,0.4798,3091.2,3090.8,1.09047529]
[1765599688578,0.4798,3091.2,3090.8,3.92040488]
[1765599690484,0.4798,3091.2,3090.8,0.685]
[1765599694684,3.71479855,3091.2,3090.7,0.58047529]
[1765599694986,4.16969855,3091.2,3090.7,2.03315731]
[1765599695187,0.4549,3091.1,3090.7,2.03315731]
[1765599695888,3.71479855,3091.2,3090.7,2.03315731]
[1765599696090,4.16969855,3091.2,3090.7,2.03315731]
[1765599697362,0.9347,3091.2,3090.7,5.26863095]
[1765599698895,0.4549,3091.1,3090.6,0.002]
[1765599699060,0.4798,3090.7,3090.6,0.002]
[1765599699579,0.9347,3090.7,3090.6,0.002]
[1765599704962,3.23534096,3090.9,3090.6,0.177]
[1765599705173,0.4549,3091.0,3090.6,0.177]
[1765599705469,0.4549,3091.3,3090.9,0.175]
[1765599705774,0.51,3091.2,3090.6,0.002]
[1765599706377,0.4549,3091.1,3090.6,0.002]
[1765599707701,3.23519896,3091.0,3090.6,0.002]
[1765599707879,3.23519896,3091.0,3090.6,0.177]
[1765599708200,3.69009896,3091.0,3090.6,0.177]
[1765599711499,3.69009896,3091.0,3090.6,0.002]
[1765599714102,3.69009896,3091.0,3090.6,0.177]
[1765599714783,3.69009896,3091.0,3090.6,0.002]
[1765599715509,3.23519896,3091.0,3090.6,0.002]
[1765599715690,0.4566,3090.7,3090.6,0.002]
[1765599717113,3.70722206,3090.9,3090.6,0.002]
[1765599717416,3.70722206,3090.9,3090.6,0.177]
[1765599719984,0.4719,3090.9,3090.6,0.177]
[1765599720184,3.23524185,3091.0,3090.6,0.177]
[1765599720403,3.70714185,3091.0,3090.6,0.177]
[1765599720920,3.23471724,3091.5,3090.6,0.177]
[1765599720921,3.23436186,3091.8,3090.9,0.175]
[1765599721087,3.23436186,3091.8,3091.1,3.2350943]
[1765599721281,3.70626186,3091.8,3091.2,0.58047529]
[1765599721487,0.4719,3091.7,3091.1,1.32527529]
[1765599721720,0.4719,3091.7,3091.2,0.45604355]
[1765599722015,0.4719,3091.7,3091.2,0.63104355]
[1765599722195,3.23436186,3091.8,3091.3,0.175]
[1765599722593,3.70626186,3091.8,3091.3,0.175]
[1765599722999,3.23436186,3091.8,3091.3,0.175]
[1765599723314,3.70636902,3091.7,3091.2,1.03651884]
[1765599723504,3.70636902,3091.7,3091.3,0.48413645]
[1765599723889,3.70636902,3091.7,3091.3,0.65913645]
[1765599724090,3.23440157,3091.8,3091.3,0.65913645]
[1765599724608,3.70630157,3091.8,3091.3,0.65913645]
[1765599734914,3.23440157,3091.8,3091.3,0.65913645]
[1765599735122,0.4719,3091.7,3091.3,0.65913645]
[1765599737626,3.70636773,3091.7,3091.3,0.65913645]
[1765599738827,3.70636773,3091.7,3091.3,0.48413645]
[1765599739944,0.4842,3091.6,3091.3,0.48413645]
[1765599740409,3.71856186,3091.8,3091.3,0.48413645]
[1765599740800,0.4842,3091.7,3091.3,0.48413645]
[1765599741406,0.4842,3091.7,3091.3,0.65913645]
[1765599741603,3.23436186,3091.8,3091.3,0.65913645]
[1765599741814,3.69596186,3091.8,3091.3,3.89402075]
[1765599742634,3.69596186,3091.8,3091.3,0.65913645]
[1765599743627,3.23436186,3091.8,3091.4,0.44745638]
[1765599743837,2.82785414,3091.6,3090.5,0.52863723]
[1765599744011,2.82785414,3091.6,3090.7,0.51]
[1765599744328,0.4616,3091.5,3090.9,0.58047529]
[1765599744528,0.4616,3091.5,3090.8,0.175]
[1765599745406,3.69635295,3091.5,3090.9,3.23529145]
[1765599745613,3.69635295,3091.5,3090.9,3.95087071]
[1765599748503,3.23475295,3091.5,3090.9,3.95087071]
[1765599748705,3.69639753,3091.4,3090.9,3.95087071]
[1765599749411,3.69639753,3091.4,3090.9,4.12587071]
[1765599749714,3.69639753,3091.4,3090.9,0.89057926]
[1765599750328,3.69639753,3091.4,3091.0,0.42607294]
[1765599753436,0.4616,3091.4,3091.0,0.42607294]
[1765599754041,3.23470531,3091.5,3091.0,0.60107294]
[1765599754230,3.69630531,3091.5,3091.0,0.60107294]
[1765599754437,0.4616,3091.4,3091.0,0.60107294]
[1765599755144,3.23463981,3091.6,3091.1,0.44343727]
[1765599755346,3.23463981,3091.6,3091.3,0.175]
[1765599755643,3.69623981,3091.6,3091.3,0.175]
[1765599760230,3.74450179,3091.7,3091.5,0.175]
[1765599761643,3.74450179,3091.7,3091.3,0.175]
[1765599761644,0.499,3091.6,3091.1,0.44343727]
[1765599761941,0.499,3091.6,3091.2,0.36785922]
[1765599762148,0.499,3091.6,3091.2,0.54285922]
[1765599764249,3.73362498,3091.6,3091.2,0.54285922]
[1765599771050,0.499,3091.6,3091.2,0.54285922]
[1765599772055,3.73358022,3091.6,3091.2,0.54285922]
[1765599772528,3.73358022,3091.6,3091.2,0.36785922]
[1765599772731,3.73358022,3091.6,3091.3,0.175]
[1765599773045,3.73358022,3091.6,3091.2,0.36785922]
[1765599773359,3.73358022,3091.6,3091.2,0.54285922]
[1765599774529,0.499,3091.6,3091.2,0.54285922]
[1765599774932,3.73357707,3091.6,3091.2,0.54285922]
[1765599777866,0.499,3091.6,3091.2,0.54285922]
[1765599778034,3.23437074,3091.8,3091.2,0.54285922]
[1765599778035,3.23438846,3091.8,3091.5,0.175]
[1765599778359,3.23438846,3091.8,3091.7,0.175]
[1765599778736,3.23428945,3091.9,3091.7,0.175]
[1765599779066,3.72688945,3091.9,3091.7,0.175]
[1765599779465,3.72688945,3091.9,3091.4,0.175]
[1765599780846,3.72688945,3091.9,3091.2,3.8154162]
[1765599780847,0.4926,3091.8,3091.2,3.8154162]
[1765599781048,0.4893,3091.3,3091.1,0.51]
[1765599781248,0.4926,3091.8,3091.1,0.51]
[1765599781433,0.4926,3091.7,3091.1,0.51]
[1765599781952,0.4926,3091.7,3091.1,3.74506727]
[1765599782136,0.4926,3091.7,3091.2,0.58047529]
[1765599782338,0.4926,3091.7,3091.3,0.43255426]
[1765599783842,3.7270695,3091.7,3091.3,0.58047529]
[1765599784266,0.4926,3091.6,3091.3,0.58047529]
[1765599784978,0.4926,3091.6,3091.1,1.09047529]
[1765599785166,0.4926,3091.6,3091.1,1.26547529]
[1765599785674,0.4926,3091.6,3091.2,0.58047529]
[1765599785970,0.4926,3091.6,3091.3,0.45005455]
[1765599789573,0.4926,3091.6,3091.4,0.97140979]
[1765599790069,0.4893,3091.5,3091.4,0.97140979]
[1765599803581,3.23440182,3091.8,3091.4,1.14640979]
[1765599803788,0.001,3092.0,3091.7,0.175]
[1765599803956,0.001,3092.0,3091.8,0.30010142]
[1765599804275,0.001,3092.0,3091.8,0.12950327]
[1765599804276,0.9261,3091.9,3091.8,0.12950327]
[1765599804460,0.9261,3091.9,3091.7,0.58047529]
[1765599804660,0.9261,3091.9,3091.8,0.58047529]
[1765599805286,1.1064,3091.9,3091.8,0.58047529]
[1765599805860,1.1064,3091.9,3091.7,0.58047529]
[1765599806056,0.9261,3091.8,3091.6,1.55180016]
[1765599806263,0.9261,3091.8,3091.6,2.08144656]
[1765599807888,0.9261,3091.8,3091.2,0.175]
[1765599807889,0.4562,3091.7,3090.6,2.82801425]
[1765599808098,0.4562,3091.6,3091.3,3.74488191]
[1765599808261,0.4562,3091.6,3091.3,4.67098191]
[1765599808462,0.4699,3091.8,3091.3,4.84598191]
[1765599809275,0.4699,3091.8,3091.3,5.66006782]
[1765599809497,0.4699,3091.8,3091.3,4.73396782]
[1765599810597,3.70427496,3091.8,3091.3,1.49908591]
[1765599810777,0.4699,3091.8,3091.3,4.73395031]
[1765599812295,3.7042877,3091.8,3091.3,1.49908591]
[1765599814007,3.7042877,3091.8,3091.3,4.73396045]
[1765599820312,0.1803,3091.9,3091.3,4.55896045]
[1765599820500,0.001,3092.0,3091.4,3.32859807]
[1765599820706,3.23517231,3092.0,3091.4,3.32859807]
[1765599820886,3.23517231,3092.0,3091.4,3.15359807]
[1765599821087,3.23517231,3092.0,3091.5,0.175]
[1765599821796,4.67646637,3092.0,3091.5,0.175]
[1765599826324,4.67646637,3092.0,3091.5,3.40965158]
[1765599828727,4.67646637,3092.0,3091.5,0.175]
[1765599831723,0.001,3092.0,3091.6,0.175]
[1765599833404,0.4812,3092.0,3091.6,0.175]
[1765599834324,0.001,3092.0,3091.6,3.99003626]
[1765599834701,0.001,3092.0,3091.6,4.96135798]
[1765599836129,0.001,3092.0,3091.9,0.175]
[1765599842638,0.001,3092.0,3091.9,0.35]
[1765599843026,0.001,3092.0,3091.9,0.175]
[1765599843225,0.001,3092.0,3091.9,3.58425725]
[1765599843425,0.001,3092.0,3091.9,4.01857433]
[1765599843724,0.001,3092.0,3091.9,0.60931708]
[1765599851232,0.001,3092.0,3091.9,3.84357433]
[1765599852255,0.001,3092.0,3091.9,3.8759169]
[1765599852749,0.001,3092.0,3091.9,3.84357433]
[1765599856550,0.001,3092.0,3091.9,0.60931708]
[1765599857955,0.001,3092.0,3091.9,3.84357433]
[1765599868466,0.4747,3092.0,3091.9,0.43431708]
[1765599870565,0.9383,3092.0,3091.9,0.43431708]
[1765599874042,0.4747,3092.0,3091.9,0.43431708]
[1765599874675,0.4747,3092.0,3091.9,3.66857433]
[1765599877598,0.001,3092.0,3091.9,3.66857433]
[1765599880072,0.001,3092.0,3091.9,0.43431708]
[1765599882779,0.4747,3092.0,3091.9,0.43431708]
[1765599883950,0.001,3092.0,3091.9,0.60931708]
[1765599884155,0.001,3092.0,3091.9,3.84357433]
[1765599885389,0.001,3092.0,3091.9,0.60931708]
[1765599888660,0.001,3092.0,3091.9,29.91711133]
[1765599902780,0.001,3092.0,3091.9,26.35234462]
[1765599903203,0.001,3092.0,3091.9,26.83514462]
[1765599903814,0.001,3092.0,3091.9,34.90684962]
[1765599904729,0.001,3092.0,3091.9,4.90684962]
[1765599904935,0.001,3092.0,3091.9,34.90684962]
[1765599906019,0.001,3092.0,3091.9,28.27690562]
[1765599906910,0.001,3092.0,3091.9,28.69938862]
[1765599907432,0.001,3092.0,3091.9,27.17440562]
[1765599907651,0.001,3092.0,3091.9,26.99940562]
[1765599907652,0.4962,3092.0,3091.9,26.99940562]
[1765599907838,0.978,3092.0,3091.9,27.54586362]
[1765599908137,0.978,3092.0,3091.9,12.45584962]
[1765599912043,0.001,3092.0,3091.9,12.63084962]
[1765599912253,0.001,3092.0,3091.9,12.80584962]
[1765599912434,0.4962,3092.0,3091.9,12.45584962]
[1765599920546,0.001,3092.0,3091.9,12.63084962]
[1765599922740,0.001,3092.0,3091.9,12.45584962]
[1765599931349,0.001,3092.0,3091.9,12.63084962]
[1765599931954,0.001,3092.3,3091.9,34.90684962]
[1765599932124,0.001,3092.3,3092.2,16.92303635]
[1765599932325,0.001,3092.3,3092.2,11.82221064]
[1765599932561,0.001,3092.3,3092.2,12.12667409]
[1765599932925,0.001,3092.3,3092.2,12.62190909]
[1765599934058,0.001,3092.3,3092.2,22.43694156]
[1765599934231,0.001,3092.3,3092.2,16.83485464]
[1765599934952,0.001,3092.3,3092.2,8.06311964]
[1765599935261,0.001,3092.3,3092.2,16.74785464]
[1765599935430,0.001,3092.3,3092.2,16.52657364]
[1765599936149,0.001,3092.3,3092.2,16.83322764]
[1765599937058,0.001,3092.3,3092.2,24.13347864]
[1765599937262,0.001,3092.3,3092.2,22.83965064]
[1765599938064,0.001,3092.3,3092.2,8.06311964]
[1765599938233,0.001,3092.3,3092.2,22.76654864]
[1765599938571,0.001,3092.3,3092.2,21.15515564]
[1765599939162,0.001,3092.3,3092.2,21.52706564]
[1765599939362,0.001,3092.3,3092.2,18.44005564]
[1765599940266,0.001,3092.3,3092.2,21.24819064]
[1765599940466,0.001,3092.3,3092.2,18.42327029]
[1765599941160,0.001,3092.3,3092.2,27.45791329]
[1765599941478,0.001,3092.3,3092.2,21.33445629]
[1765599941775,0.001,3092.3,3092.2,17.54045629]
[1765599941964,0.001,3092.3,3092.2,20.36421235]
[1765599942153,0.001,3092.3,3092.2,22.49336635]
[1765599942352,0.001,3092.3,3092.2,15.83036735]
[1765599942870,0.001,3092.3,3092.2,15.32380835]
[1765599943168,0.001,3092.3,3092.2,16.15111235]
[1765599943372,0.001,3092.3,3092.2,15.82765535]
[1765599943561,0.001,3092.3,3092.2,15.32380835]
[1765599943874,0.001,3092.3,3092.2,14.86150735]
[1765599944373,0.001,3092.3,3092.2,15.50842135]
[1765599945197,0.001,3092.3,3092.2,15.96872235]
[1765599946166,0.001,3092.3,3092.2,7.88695535]
[1765599946362,0.001,3092.3,3092.2,15.84768235]
[1765599947154,0.001,3092.3,3092.2,15.64526535]
[1765599947354,0.001,3092.3,3092.2,16.40539735]
[1765599947653,0.001,3092.3,3092.2,16.08194035]
[1765599947853,0.001,3092.3,3092.2,15.75848335]
[1765599948355,0.001,3092.3,3092.2,17.26083535]
[1765599949278,0.001,3092.3,3092.2,22.44121235]
[1765599949577,0.001,3092.3,3092.2,17.57380835]
[1765599950275,0.001,3092.3,3092.2,7.88695535]
[1765599950483,0.001,3092.3,3092.2,23.61021235]
[1765599950776,0.001,3092.3,3092.2,22.92130835]
[1765599951574,0.001,3092.3,3092.2,22.44444635]
[1765599952380,0.001,3092.3,3092.2,23.21391335]
[1765599952582,0.001,3092.3,3092.2,22.44444635]
[1765599953176,0.001,3092.3,3092.2,17.37507935]
[1765599953378,0.001,3092.3,3092.2,17.05172235]
[1765599953687,0.001,3092.3,3092.2,16.72826535]
[1765599954384,0.001,3092.3,3092.2,7.88695535]
[1765599954577,0.001,3092.3,3092.2,22.95381535]
[1765599954883,0.001,3092.3,3092.2,17.38698535]
[1765599955090,0.001,3092.3,3092.2,17.15058135]
[1765599955584,0.001,3092.3,3092.2,23.63366235]
[1765599955786,0.001,3092.3,3092.2,23.31020535]
[1765599955993,0.001,3092.3,3092.2,22.44444635]
[1765599956154,0.001,3092.3,3092.2,17.66163835]
[1765599956349,0.001,3092.3,3092.2,17.01149035]
[1765599956653,0.001,3092.3,3092.2,31.03602335]
[1765599956854,0.001,3092.3,3092.2,28.18506435]
[1765599957076,0.001,3092.3,3092.2,28.01006435]
[1765599957575,0.001,3092.3,3092.2,28.33621535]
[1765599957771,0.001,3092.3,3092.2,28.01275835]
[1765599958587,0.001,3092.3,3092.2,28.35465035]
[1765599958959,0.001,3092.3,3092.2,28.01146435]
[1765599959559,0.001,3092.3,3092.2,27.89526135]
[1765599960682,0.001,3092.3,3092.2,27.84358735]
[1765599961392,0.001,3092.3,3092.2,28.01858735]
[1765599961888,0.001,3092.3,3092.2,30.40233635]
[1765599963791,0.001,3092.3,3092.2,37.70099335]
[1765599964192,0.001,3092.3,3092.2,31.85866235]
[1765599964761,0.001,3092.3,3092.2,38.06195535]
[1765599966786,0.001,3092.3,3092.2,8.06195535]
[1765599967090,0.001,3092.3,3092.2,38.06195535]
[1765599967898,0.001,3092.3,3092.2,8.06195535]
[1765599968195,0.001,3092.3,3092.2,38.06195535]
[1765599971999,0.001,3092.3,3092.2,8.06195535]
[1765599972200,0.001,3092.3,3092.2,38.06195535]
[1765599972995,0.001,3092.3,3092.2,8.06195535]
[1765599973297,0.001,3092.3,3092.2,37.37612589]
[1765599974099,0.001,3092.3,3092.2,8.06132889]
[1765599974302,0.9817,3092.3,3092.0,0.42301306]
[1765599974467,0.4896,3092.1,3092.0,6.48027028]
[1765599974674,0.4896,3092.1,3092.0,7.06074557]
[1765599974868,0.4896,3092.1,3092.0,8.14124608]
[1765599975366,0.9807,3092.1,3092.0,8.14124608]
[1765599976875,0.9807,3092.1,3092.0,7.06074557]
[1765599977185,0.9807,3092.1,3092.0,4.23761597]
[1765599982482,0.9807,3092.1,3092.0,7.06074557]
[1765599995932,0.9807,3092.1,3092.0,4.23761597]
[1765600009253,0.001,3092.3,3092.1,0.58047529]
[1765600009554,0.4934,3092.3,3092.1,0.58047529]
[1765600009728,0.4842,3092.2,3092.1,0.58047529]
[1765600010349,0.9766,3092.2,3092.1,0.58047529]
[1765600017343,0.9766,3092.2,3092.1,3.23404805]
[1765600018463,0.9766,3092.2,3092.0,4.23759969]
[1765600018665,0.4516,3092.1,3092.0,4.23759969]
[1765600019861,0.4516,3092.1,3092.0,5.03578497]
[1765600021264,0.9165,3092.1,3092.0,5.03578497]
[1765600021433,0.9165,3092.1,3092.0,4.23759969]
[1765600038683,0.9165,3092.1,3092.0,0.42301306]
[1765600043568,4.15054805,3092.1,3092.0,0.42301306]
[1765600043767,0.9165,3092.1,3092.0,0.42301306]
[1765600061726,3.23487606,3092.3,3092.0,0.42301306]
[1765600061896,3.71337606,3092.3,3092.0,0.42301306]
[1765600062395,0.4785,3092.2,3092.0,0.42301306]
[1765600062916,0.486,3092.1,3092.0,0.42301306]
[1765600063494,0.9645,3092.1,3092.0,0.42301306]
[1765600068327,4.19854805,3092.1,3092.0,0.42301306]
[1765600068634,4.94188677,3092.1,3092.0,0.42301306]
[1765600069433,1.70783872,3092.1,3092.0,0.42301306]
[1765600069601,0.9645,3092.1,3092.0,0.42301306]
[1765600073446,0.001,3092.3,3092.0,0.59801306]
[1765600073618,0.001,3092.3,3092.2,0.175]
[1765600074138,0.001,3092.3,3092.2,0.35]
[1765600074336,0.001,3092.3,3092.2,0.93047529]
[1765600074543,0.001,3092.3,3092.2,34.16441876]
[1765600074705,0.001,3092.3,3092.2,28.74629776]
[1765600074905,0.001,3092.3,3092.2,27.89992389]
[1765600075107,0.001,3092.3,3092.2,27.47683989]
[1765600075532,0.001,3092.3,3092.2,27.62939089]
[1765600075735,0.001,3092.3,3092.2,24.28226189]
[1765600075906,0.001,3092.3,3092.2,23.63568089]
[1765600076102,0.001,3092.3,3092.2,23.01146989]
[1765600076309,0.001,3092.3,3092.2,22.68800289]
[1765600076646,0.001,3092.3,3092.2,24.99595989]
[1765600077438,0.001,3092.3,3092.2,20.32160489]
[1765600077642,0.001,3092.3,3092.2,20.32357789]
[1765600078734,0.001,3092.3,3092.2,4.29388389]
[1765600078914,0.001,3092.3,3092.2,21.82403089]
[1765600079234,0.001,3092.3,3092.2,21.50056389]
[1765600079739,0.001,3092.3,3092.2,4.29388389]
[1765600079942,0.001,3092.3,3092.2,21.68721289]
[1765600080438,0.001,3092.3,3092.2,18.78887589]
[1765600080645,0.001,3092.3,3092.2,8.17621789]
[1765600080845,0.001,3092.3,3092.2,9.50622489]
[1765600081754,0.001,3092.3,3092.2,12.33195818]
[1765600082048,0.001,3092.3,3092.2,25.28277018]
[1765600082248,0.001,3092.3,3092.2,24.11377018]
[1765600083347,0.001,3092.3,3092.2,23.46721918]
[1765600083919,0.001,3092.3,3092.2,7.62961718]
[1765600084218,0.001,3092.3,3092.2,23.46721918]
[1765600084547,0.001,3092.3,3092.2,22.47121918]
[1765600085251,0.001,3092.3,3092.2,23.46721918]
[1765600086152,0.001,3092.3,3092.2,19.99790918]
[1765600086449,0.001,3092.3,3092.2,19.61884818]
[1765600087021,0.001,3092.3,3092.2,12.37717618]
[1765600087329,0.001,3092.3,3092.2,11.28161118]
[1765600087950,0.001,3092.3,3092.2,8.45587789]
[1765600088148,0.001,3092.3,3092.2,7.45461718]
[1765600088341,0.001,3092.3,3092.2,21.78170118]
[1765600089222,0.001,3092.3,3092.2,26.91235618]
[1765600089450,0.001,3092.3,3092.2,26.58888518]
[1765600089652,0.001,3092.3,3092.2,25.94233418]
[1765600089873,0.4683,3092.3,3092.2,4.45388389]